Cogmind - Beta 16.1 *** ADVENTURER MODE // 2026.03.29 @ 05:24:36 Player: Sharded of Serpulo Result: Self-destructed Performance ------------- Evolutions (2) 1000 Regions Visited (6) 1200 Robots Destroyed (49) 245 Value Destroyed (1346) 1346 Prototype IDs (0) 0 Alien Tech Used (0) 0 Bonus (34) 34 TOTAL SCORE: 3825 Bonus ------- High Alert Combat Kills 34 Cogmind --------- Core Integrity 377/550 Matter 63/300 Energy 140/140 System Corruption 0% Temperature Cool (54) Movement Hovering (176) Ox2 Location -8/Materials Parts ------- > --- POWER (1) -------- Light Deuterium Engine > --- PROPULSION (4) --- Hover Unit Hover Unit > --- UTILITY (4) ------ Small Storage Unit Trap Scanner Propulsion Shielding Hardened Medium Armor Plating > --- WEAPON (2) ------- Improved Light Cannon Missile Launcher > --- INVENTORY (8) ---- Cooling System Propulsion Shielding Propulsion Shielding Light Cannon Flak Cannon Hammer Peak State ------------ > --- POWER ------------ Light Deuterium Engine > --- PROPULSION ------- Hover Unit Hover Unit Hover Unit Hover Unit > --- UTILITY ---------- Small Storage Unit Trap Scanner Propulsion Shielding Hardened Medium Armor Plating > --- WEAPON ----------- Improved Light Cannon Missile Launcher > --- INVENTORY -------- Cooling System Propulsion Shielding Propulsion Shielding Light Cannon Flak Cannon Hammer [Rating: 20] Favorites ----------- Power Light Nuclear Core Engine Light Deuterium Engine Power Core Light Nuclear Core Propulsion Hover Unit Treads Light Treads Hover Unit Hover Unit Utility Small Storage Unit Device Trap Scanner Storage Small Storage Unit Protection Propulsion Shielding Weapon Light Cannon Ballistic Gun Assault Rifle Ballistic Cannon Light Cannon Launcher Missile Launcher Build | -11 -10 -9 -9 -9 -8 -8 ------- Run | Yrd Mat Mat Min Exi Min Mat Slots Evolved 4 | . . 2 . . . 2 Power . | . . . . . . . Propulsion 2 | . . 2 . . . . Utility 2 | . . . . . . 2 Weapon . | . . . . . . . Parts Attached 31 | 6 5 10 1 . 1 8 Power 4 | 1 1 . 1 . . 1 Engine 3 | 1 . . 1 . . 1 Core 1 | . 1 . . . . . Reactor . | . . . . . . . Propulsion 12 | 2 2 7 . . 1 . Treads 5 | 2 2 1 . . . . Leg . | . . . . . . . Wheel . | . . . . . . . Hover 7 | . . 6 . . 1 . Flight . | . . . . . . . Utility 6 | 1 . 1 . . . 4 Device 1 | . . . . . . 1 Storage 1 | 1 . . . . . . Processor . | . . . . . . . Hackware . | . . . . . . . Protection 4 | . . 1 . . . 3 Artifact . | . . . . . . . Weapon 9 | 2 2 2 . . . 3 Energy Gun . | . . . . . . . Energy Cannon . | . . . . . . . Ballistic Gun 2 | 2 . . . . . . Ballistic Cannon 6 | . 2 2 . . . 2 Launcher 1 | . . . . . . 1 Special Weapon . | . . . . . . . Impact Weapon . | . . . . . . . Slashing Weapon . | . . . . . . . Piercing Weapon . | . . . . . . . Special Melee Weapon . | . . . . . . . Unidentified Prototypes . | . . . . . . . Parts Lost 9 | . . 1 . . . 8 Power 1 | . . . . . . 1 Propulsion 5 | . . 1 . . . 4 Utility . | . . . . . . . Weapon 3 | . . . . . . 3 Highest Loss Streak 4 | . . 1 . . . 4 To Critical Strikes . | . . . . . . . Average Backups 6 | . 4 6 7 8 8 6 Power . | . 1 1 1 1 1 . Propulsion 1 | . . 2 2 2 2 . Utility 1 | . . . 2 3 3 2 Weapon 2 | . 2 2 2 2 2 2 Tool/Special . | . . . . . . . Unused Backups 9 | . . 6 . . . 3 Power . | . . . . . . . Propulsion 4 | . . 4 . . . . Utility 2 | . . 1 . . . 1 Weapon 3 | . . 1 . . . 2 Tool/Special . | . . . . . . . Average Slot Usage (%) 87 | . 84 78 100 100 100 88 Engine 6 | . 10 . 3 11 11 9 Core 4 | . 2 11 7 . . . Treads 15 | . 28 25 . . . . Hover 19 | . . 7 44 44 44 34 Storage 11 | . 14 11 11 11 11 9 Protection 5 | . . . 11 11 11 14 Ballistic Gun 6 | . 24 . . . . . Ballistic Cannon 16 | . 3 22 22 22 22 14 Peak Build Rating 20 | 6 8 11 11 11 11 20 Average Rating 9 | 4 6 9 11 11 11 14 On Entrance 8 | . 6 8 11 11 11 11 Avg Prop Armor Cover (%) . | . . . . . . . Naked Turns . | . . . . . . . Heaviest Build 31 | 13 16 17 17 17 17 31 Greatest Support 60 | 40 40 60 28 28 28 28 Greatest Overweight (x) 3 | 3 . 2 . . . 1 Average Overweight (x) . | . . . . . . . Largest Inventory Capacity 8 | 8 8 8 8 8 8 8 Average Capacity 7 | 7 8 8 8 8 8 8 Most Carried 8 | 2 8 8 8 8 8 8 Average Carried 6 | . 4 6 7 8 8 6 Final Capacity 8 | 8 8 8 8 8 8 8 Final Carried 8 | 2 8 7 8 8 8 6 Class Distribution -------------------- 54% | Mutant 45% | Scavenger-Mutant Dominant Class ---------------- Mutant | -10/Materials Mutant | -9/Materials Scavenger-Mutant | -9/Mines Scavenger-Mutant | -9/Exiles Scavenger-Mutant | -8/Mines Scavenger-Mutant | -8/Materials Resources | -11 -10 -9 -9 -9 -8 -8 ----------- Run | Yrd Mat Mat Min Exi Min Mat Matter Collected 1092 | 208 226 537 8 . 20 93 Remotely . | . . . . . . . Salvage Created 1267 | . 277 676 19 . . 295 Parts 86 | . 25 35 . . . 26 Haulers Intercepted 4 | . 1 2 . . . 1 Recyclers Shooed . | . . . . . . . Parts Field Recycled . | . . . . . . . Retrieved Matter . | . . . . . . . Parts Self-Destructed . | . . . . . . . Prevented . | . . . . . . . Parts Restored . | . . . . . . . Kills | -11 -10 -9 -9 -9 -8 -8 ------- Run | Yrd Mat Mat Min Exi Min Mat Combat Hostiles Destroyed 29 | . 7 14 . . . 8 Guns 7 | . 7 . . . . . Cannons 17 | . . 14 . . . 3 AOE 5 | . . . . . . 5 Classes Destroyed 10 | . 3 6 . . . 1 Worker 3 | . . 1 . . . 2 Builder 4 | . . 1 . . . 3 Hauler 4 | . 1 2 . . . 1 Recycler 1 | . . 1 . . . . Mechanic 1 | . . . . . . 1 Operator 2 | . . 2 . . . . Watcher 5 | . . 3 . . . 2 Swarmer 6 | . 3 . . . . 3 Grunt 19 | . 4 12 . . . 3 Sentry 4 | . . 2 . . . 2 Best Kill Streak 11 | . 7 7 . . . 11 Combat Bots Only 7 | . 7 3 . . . 3 Max Kills in Single Turn 6 | . 1 2 . . . 6 Gunslinging . | . . . . . . . Exploded 2 | . . . . . . 2 Melee . | . . . . . . . Uniques/NPCs Destroyed . | . . . . . . . Combat | -11 -10 -9 -9 -9 -8 -8 -------- Run | Yrd Mat Mat Min Exi Min Mat Hostile Shots Fired 228 | . 48 69 1 . . 110 Missed 81 | . 15 21 . . . 45 Hits 147 | . 33 48 1 . . 65 Melee 1 | . . . 1 . . . Projectile 146 | . 33 48 . . . 65 Critical Strikes 6 | . . 4 . . . 2 Damage Taken 1655 | . 289 492 27 . . 847 Core 306 | . 55 78 . . . 173 Absorbed by Shields . | . . . . . . . Redirected to Shielding 58 | . . . 8 . . 50 Ignored by Resistances 475 | . 89 142 7 . . 237 Core Remaining (%) 86 | 100 78 . . . 80 . Volleys Fired 101 | . 28 48 1 . . 24 Largest 2 | . 2 2 2 . . 2 Hottest 69 | . 60 60 60 . . 69 Shots Fired 200 | . 56 96 2 . . 46 Gun 52 | . 52 . . . . . Cannon 143 | . 4 96 2 . . 41 Launcher 5 | . . . . . . 5 Special . | . . . . . . . Kinetic 195 | . 56 96 2 . . 41 Thermal . | . . . . . . . Explosive 5 | . . . . . . 5 Electromagnetic . | . . . . . . . Robot Hit Streak 34 | . 21 23 25 . . 34 Robot Miss Streak 4 | . 3 2 . . . 4 Penetration Max . | . . . . . . . Secondary Targets 1 | . 1 . . . . . Max Gunslinging Chain 1 | . 1 . . . . . Shots Hit Robots 154 | . 45 71 2 . . 36 Core Hits 72 | . 18 30 1 . . 23 Critical Kills . | . . . . . . . Critical Parts Destroyed . | . . . . . . . Critical Strikes 3 | . . 3 . . . . Blast 3 | . . 3 . . . . Melee Attacks . | . . . . . . . Impact . | . . . . . . . Slashing . | . . . . . . . Piercing . | . . . . . . . Sneak Attacks . | . . . . . . . Combat Hostiles . | . . . . . . . Follow-up Attacks . | . . . . . . . Damage Inflicted 3489 | . 511 1270 38 . . 1670 Guns 455 | . 455 . . . . . Cannons 2012 | . 56 1270 38 . . 648 Explosions 1022 | . . . . . . 1022 Melee . | . . . . . . . Ramming . | . . . . . . . Kinetic 2467 | . 511 1270 38 . . 648 Thermal 608 | . . . . . . 608 Explosive 414 | . . . . . . 414 Electromagnetic . | . . . . . . . Impact . | . . . . . . . Slashing . | . . . . . . . Piercing . | . . . . . . . Highest Corruption . | . . . . . . . Average Corruption . | . . . . . . . Corruption Purged . | . . . . . . . Corruption Blocked . | . . . . . . . Overload Shots . | . . . . . . . Overflow Damage 98 | . . 5 . . . 93 Projectiles 5 | . . 5 . . . . Explosions 93 | . . . . . . 93 Melee . | . . . . . . . Knockbacks 12 | . . 6 . . . 6 Impact . | . . . . . . . Kinetic 10 | . . 5 . . . 5 Secondary 2 | . . 1 . . . 1 Self-Inflicted Damage 87 | . . . . . . 87 Shots 2 | . . . . . . 2 Rammed . | . . . . . . . Targets Rammed . | . . . . . . . Kicked . | . . . . . . . Crushed . | . . . . . . . Highest Temperature 170 | . 18 170 13 . . 160 Average Temperature 50 | . 7 59 10 . . 50 Received Heat Transfer 1008 | . 147 420 . . . 441 Siege Activations . | . . . . . . . Martial Activations . | . . . . . . . Shielding Activations . | . . . . . . . Robots Disrupted . | . . . . . . . Combat Hostiles . | . . . . . . . Robots Corrupted . | . . . . . . . Combat Hostiles . | . . . . . . . Parts Fried . | . . . . . . . Impact Corruptions . | . . . . . . . Robots Melted . | . . . . . . . Combat Hostiles . | . . . . . . . Parts Melted . | . . . . . . . Heat Transferred 500 | . . . . . . 500 Parts Sabotaged . | . . . . . . . Parts Stolen . | . . . . . . . Parts Stripped . | . . . . . . . Power Chain Reactions . | . . . . . . . Alert | -11 -10 -9 -9 -9 -8 -8 ------- Run | Yrd Mat Mat Min Exi Min Mat Maximum Alert Level 2 | . . 1 . . . 2 Low Security (%) 91 | 100 100 90 100 . 100 60 Level 1 8 | . . 9 . . . 36 Level 2 . | . . . . . . 2 Level 3 . | . . . . . . . Level 4 . | . . . . . . . Level 5 . | . . . . . . . High Security . | . . . . . . . Max Security . | . . . . . . . Peak Influence 478 | . 145 225 67 . . 478 Initial 67 | . . 36 67 . . . Average 76 | . 40 116 30 . . 163 Influence Increases 1305 | . 192 445 . . . 668 Destroy 0b10 Robot/C 580 | . 140 280 . . . 160 Destroy 0b10 Robot/NC 100 | . 5 50 . . . 45 Destroy Leader 148 | . 32 70 . . . 46 Successful Hack 3 | . . 3 . . . . Disable Machine 144 | . . 9 . . . 135 Destroy Structure 75 | . . 3 . . . 72 Partial Spotted 105 | . . 30 . . . 75 Lose Combat Pursuer 150 | . 15 . . . . 135 Influence Decreases 827 | . 90 342 205 . . 190 Entered New Map 204 | . . 66 138 . . . Time Decay 533 | . 90 266 67 . . 110 Lost Part 90 | . . 10 . . . 80 Squads Dispatched 2 | . . . . . . 2 Investigation . | . . . . . . . Extermination . | . . . . . . . Reinforcement 1 | . . . . . . 1 Assault . | . . . . . . . Garrison 1 | . . . . . . 1 Intercept . | . . . . . . . Searches Triggered . | . . . . . . . Construction Impeded 1 | . . . . . . 1 Haulers Reinforced . | . . . . . . . Active Scanning Responses . | . . . . . . . Cargo Convoy Interrupts . | . . . . . . . Stealth | -11 -10 -9 -9 -9 -8 -8 --------- Run | Yrd Mat Mat Min Exi Min Mat Distress Signals 6 | . 1 3 . . . 2 Communications Jammed . | . . . . . . . Distress Signals . | . . . . . . . Times Spotted 76 | . 16 20 16 . . 24 Peak Tracking Total 20 | . 7 4 20 . . 7 Tactical Retreats 5 | . 1 . . . . 4 Traps | -11 -10 -9 -9 -9 -8 -8 ------- Run | Yrd Mat Mat Min Exi Min Mat Traps Triggered . | . . . . . . . Indirectly . | . . . . . . . Trap Hack Attempts . | . . . . . . . Triggered . | . . . . . . . Disarmed . | . . . . . . . Reprogrammed . | . . . . . . . Reused . | . . . . . . . Traps Extracted . | . . . . . . . Installed . | . . . . . . . Triggered . | . . . . . . . Machines | -11 -10 -9 -9 -9 -8 -8 ---------- Run | Yrd Mat Mat Min Exi Min Mat Machines Disabled 16 | . . 1 . . . 15 Max in Single Turn 12 | . . 1 . . . 12 Machines Repaired . | . . . . . . . Machines Dismantled . | . . . . . . . Machines Sabotaged . | . . . . . . . Overloaded Fab Kills . | . . . . . . . Hacking | -11 -10 -9 -9 -9 -8 -8 --------- Run | Yrd Mat Mat Min Exi Min Mat Machines Accessed 3 | . . 2 . . . 1 Terminals 1 | . . 1 . . . . Fabricators . | . . . . . . . Repair Stations . | . . . . . . . Recycling Units . | . . . . . . . Scanalyzers 2 | . . 1 . . . 1 Garrison Access . | . . . . . . . Total Hacks 8 | . . 5 . . . 3 Successful 7 | . . 4 . . . 3 Failed 1 | . . 1 . . . . Catastrophic . | . . . . . . . Database Lockouts . | . . . . . . . Manual . | . . . . . . . Terminals 1 | . . 1 . . . . Fabricators . | . . . . . . . Repair Stations . | . . . . . . . Recycling Units . | . . . . . . . Scanalyzers 7 | . . 4 . . . 3 Garrison Access . | . . . . . . . Terminal Hacks 1 | . . 1 . . . . Emergency Access Points 1 | . . 1 . . . . Fabricator Hacks . | . . . . . . . Repair Station Hacks . | . . . . . . . Recycling Unit Hacks . | . . . . . . . Scanalyzer 6 | . . 3 . . . 3 Retrieve Study 6 | . . 3 . . . 3 Garrison Access Hacks . | . . . . . . . Unauthorized Hacks . | . . . . . . . Terminals . | . . . . . . . Fabricators . | . . . . . . . Repair Stations . | . . . . . . . Recycling Units . | . . . . . . . Scanalyzers . | . . . . . . . Garrison Access . | . . . . . . . Data Cores Recovered 1 | . . 1 . . . . Used . | . . . . . . . Hacking Detections 2 | . . 1 . . . 1 Full Trace Events . | . . . . . . . Feedback Events . | . . . . . . . Feedback Blocked . | . . . . . . . Robot Schematics Acquired . | . . . . . . . Robots Built . | . . . . . . . Authchips . | . . . . . . . Time . | . . . . . . . Total Robot Build Rating . | . . . . . . . Part Schematics Acquired . | . . . . . . . Parts Built . | . . . . . . . Authchips . | . . . . . . . Time . | . . . . . . . Total Part Build Rating . | . . . . . . . Part Studies Acquired 6 | . . 3 . . . 3 Parts Repaired . | . . . . . . . Time . | . . . . . . . Parts Recycled . | . . . . . . . Recycled Matter . | . . . . . . . Retrieved Matter . | . . . . . . . Retrieved Components . | . . . . . . . Parts Scanalyzed . | . . . . . . . Part Schematics Acquired . | . . . . . . . Parts Damaged . | . . . . . . . Bothacking | -11 -10 -9 -9 -9 -8 -8 ------------ Run | Yrd Mat Mat Min Exi Min Mat Used RIF Installer . | . . . . . . . Robots Hacked . | . . . . . . . Non-combat . | . . . . . . . Combat . | . . . . . . . Robot Hacks Applied . | . . . . . . . Relay Couplers Released . | . . . . . . . Fabnet Peak Effective % . | . . . . . . . Robots Rewired . | . . . . . . . Allies Hacked . | . . . . . . . Hacks Repelled . | . . . . . . . Allies | -11 -10 -9 -9 -9 -8 -8 -------- Run | Yrd Mat Mat Min Exi Min Mat Total Allies . | . . . . . . . Largest Group . | . . . . . . . Highest-Rated Group . | . . . . . . . Highest-Rated Ally . | . . . . . . . Total Orders . | . . . . . . . Ally Attacks . | . . . . . . . Total Damage . | . . . . . . . Kills . | . . . . . . . Allies Corrupted . | . . . . . . . Allies Melted . | . . . . . . . Intel | -11 -10 -9 -9 -9 -8 -8 ------- Run | Yrd Mat Mat Min Exi Min Mat Active Infowar (turns) 136 | . . . . . . 136 Traps 136 | . . . . . . 136 Robot Analysis Total . | . . . . . . . Derelict Logs Recovered . | . . . . . . . Drone Launches . | . . . . . . . Drone Recoveries . | . . . . . . . Exploration | -11 -10 -9 -9 -9 -8 -8 ------------- Run | Yrd Mat Mat Min Exi Min Mat Turns Passed 1887 | 141 451 560 165 182 131 257 Spaces Moved 1732 | 87 215 320 221 354 270 265 Core 15 | 15 . . . . . . Treads 473 | 72 215 186 . . . . Legs . | . . . . . . . Wheels . | . . . . . . . Hover 1244 | . . 134 221 354 270 265 Flight . | . . . . . . . Fastest Speed 48 | 50 160 48 48 48 48 48 Average Speed 80 | 148 160 115 48 48 48 58 Slowest Speed 240 | 200 160 240 48 48 48 112 Overloaded Moves . | . . . . . . . Propulsion Burnouts . | . . . . . . . Robots Hopped . | . . . . . . . Potential Cave-ins . | . . . . . . . Cave-ins Triggered . | . . . . . . . Exploration Rate (%) 39 | 4 34 29 39 75 64 32 Regions Visited 6 Branch Regions 3 Pre-discovered Areas . | . . . . . . . Known Exits Taken . | . . . . . . . Unknown Exits Taken 6 | 1 1 1 1 1 1 . Scrap Searched 1 | . . . 1 . . . Spaces Dug . | . . . . . . . Terrain Destroyed 86 | . . . . . . 86 Melee . | . . . . . . . Projectile 1 | . . . . . . 1 AOE 85 | . . . . . . 85 Terrain Rammed . | . . . . . . . Walls Destroyed . | . . . . . . . Machines Disabled . | . . . . . . . Actions | -11 -10 -9 -9 -9 -8 -8 --------- Run | Yrd Mat Mat Min Exi Min Mat Total 2014 | 96 270 418 277 365 270 318 Wait 91 | 1 12 3 53 12 . 10 Move 1726 | 86 214 319 220 353 269 265 Hop . | . . . . . . . Pick Up 32 | 3 6 16 1 . . 6 Fast Attach 9 | 5 1 3 . . . . Attach 15 | 1 . 6 . . . 8 Detach 2 | . . 2 . . . . Swap 18 | . 6 5 1 . 1 5 Drop 20 | . 3 16 1 . . . Fire 101 | . 28 48 1 . . 24 Melee . | . . . . . . . Ram . | . . . . . . . Kick . | . . . . . . . Crush . | . . . . . . . Escape Stasis . | . . . . . . . Rewire . | . . . . . . . Trap . | . . . . . . . Miscellaneous . | . . . . . . . Route ------- -11/Scrapyard -10/Materials -9/Materials -9/Mines -9/Exiles -8/Mines -8/Materials History --------- Turn | Location | Event 12 | -11/Scrapyard | Discovered new exit (range 16) 142 | -11/Scrapyard | Entered Materials 314 | -10/Materials | Build established: Mutant 505 | -10/Materials | Destroyed 7 combat bots 526 | -10/Materials | Discovered new exit (range 13) 593 | -10/Materials | Entered another Materials area 593 | -9/Materials | Evolved 2 slots: Propulsion x2 1077 | -9/Materials | Discovered new exit (range 12) 1153 | -9/Materials | Entered Mines 1154 | -9/Mines | Assembled infested the area 1159 | -9/Mines | A Derelict revealed a hidden shortcut to a safe place 1201 | -9/Mines | YI-UF0 nonchalantly dropped a Grenade Launcher on the ground 1205 | -9/Mines | Met 8R-AWN 1310 | -9/Mines | Discovered new exit (range 5) 1318 | -9/Mines | Entered Exiles 1335 | -9/Exiles | Welcomed by 8R-AWN 1361 | -9/Exiles | Met EX-HEX 1381 | -9/Exiles | Met EX-DEC 1394 | -9/Exiles | Visited The Gauntlet 1417 | -9/Exiles | Build established: Scavenger-Mutant 1494 | -9/Exiles | Discovered new exit (range 10) 1500 | -9/Exiles | Entered Mines 1626 | -8/Mines | Discovered new exit (range 6) 1631 | -8/Mines | Entered Materials 1631 | -8/Materials | Evolved 2 slots: Utility x2 1654 | -8/Materials | Garrison activated, responded to threat 1832 | -8/Materials | Lost 4 parts (1p1n2w) 1888 | -8/Materials | Self-destructed Last Messages --------------- Acquired 15 matter. R-06 Scavenger collects Lgt. Ion Engine+. U-05 Engineer lays Concrete. W-25 Informer destroyed. ALERT: Construction progress impeded, dispatching reinforcements to local area. U-05 Engineer lays Concrete. M-13 Machinist repairs G-50 Soldier. U-05 Engineer lays Concrete. Acquired 9 matter. M-13 Machinist repairs G-50 Soldier Carbon-fiber Leg. Destroyed Lgt. Angular Momentum Engine. M-13 Machinist destroyed. Y-45 Defender destroyed. Hover Unit+ destroyed. G-50 Soldier destroyed. G-47 Trooper destroyed. U-05 Engineer lays Concrete. The unstable cave ceiling collapses. Map ----- +----------------------------------------------------+ | ??????????????# ???????????# #????????# #????? | | ???????????????????????????# #????????# #????? | | ???????????????????????????# #????????# ###????? | | ??????????????????????????## #????????# ???????? | | ??????????????????????#### # #????????# ???????? | | ?????????????????????# " ########?# ???????? | | ??????????????????####"""""" # ] #?# ???????? | | ??????????????????# " " #?# ???????? | | ??????????????????# T " + """" #?? ???????? | | ??????????????????# " """" #?? ???????? | | ??????????????????# " """" ???????????? | | ??????????????????# " ???????????? | | ??????????????????# ######## #??????? | | ??????????????????# % #??????? | | ??????????????????# * %! ????? | | ??????????????????# = " #?????? | | ??????????????????##""##+### #?????? | | ???????????????????# # #?????? | | ???????????????????#### #?????? | | ??????????????????????#^ ??????? | | ??????????????????????# " ??????? | | ??????????????????????# ???????? | | ??????????????? ????# ?????????? | | ??????????????# ????# ????????? | | ??????????????# ??### ????????? | | ??????????????# #?#" @ r ????????? | | ??????????????# #?#" *????????? | | ??????????????# #?#" ????????? | | ??????????????# #?## ????????? | | #######???????# #??# ?????????? | | !!!#???????#% #??#; ?????????? | | " !!!#???????#% #??# ?????????? | | " !! ????????# #??# ?????????? | | ??????????# #?? ????????? | | #+############# #?? ????????? | | + #? # === ????????? | | ####### ### % u ==!?????????? | | #?????# !% ==??????????? | | #?????# *= =??????????? | | ####### ???????????? | | ""###???????????? | | #+######### ##########+######?????????????? | | #??????# ###/#########???????????????????????? | | ##?????# # #??????????????????????? | | ## Y???# # """ """ #??????????????????????? | | ## "" ## # """ """ ???????????????????????? | | ## + # """ """?????????????????????????? | | ## ] ## # ?????????????????????????? | | ## ???# ############????????????????????????? | | ##?????# #?? #????????????????????????? | +----------------------------------------------------+ Best States ------------- Heat Dissipation 31 Energy Generation 14 Energy Capacity 250 Matter Stores 300 Matter Capacity 300 Sight Range 16 Terrain Scan Density 10 Armor Coverage 225 Resistance: KI 20 Resistance: TH 20 Resistance: EX 20 Resistance: EM 20 Resistance: I 20 Resistance: S 20 Resistance: P 20 Propulsion Shielding 33 Evasion (%) 55 Recoil Reduction 3 Offensive Hacking 10 Item Schematics ----------------- None Robot Schematics ------------------ None Fabricated ------------ Nothing Repaired ---------- Nothing Studied --------- Hover Unit | -9/Materials | Hacked Lgt. Ion Engine | -9/Materials | Hacked Lgt. Cannon | -9/Materials | Hacked Flak Cannon | -8/Materials | Hacked Missile Launcher | -8/Materials | Hacked Imp. Light Cannon | -8/Materials | Hacked Alien Tech Used ----------------- None Achievements -------------- Hunted Challenges ------------ None Game ------ Seed VariableRocketTearclaws Manual? 0 Play Time 00:26:23 Cumulative 27.6 hours Start 2026.03.28 @ 15:01:57 End 2026.03.29 @ 05:24:36 Sessions 7 Manual Loads 0 Difficulty Adventurer Special Mode None Game No. 35 Rogue 0 Adventurer 35 Explorer 0 Win Type - Total 0 Types 0/0/0/0/0/0/0/0/0/0 Lore% 13 Gallery% 23 Achievement% 22 Wizard Run 0 Options --------- Layout 1 ASCII 0 Keyboard 0 Movement Mouse Keybinds 1 Fullscreen 1 Font 32/Tamsyn Map View 50x35 Zoom Use 0% Tactical HUD 0 Map Filters NONE Filters NONE Steam 1 RUN: 0c7eafe9-682f-448c-8e0a-945e5d48e6c3